Cogmind - Beta 17 @@@ ROGUE MODE // 2026.07.07 @ 04:14:30 Player: ChCbias Result: Destroyed by P-80 Master with Gamma Rifle Performance ------------- Evolutions (9) 4500 Regions Visited (16) 3200 Robots Destroyed (38) 190 Value Destroyed (845) 845 Prototype IDs (23) 460 Alien Tech Used (0) 0 Bonus (3000) 3000 TOTAL SCORE: 12195 Bonus ------- Met Warlord at Base 500 MAIN.C Attacked Warlord 500 Met Warlord at Research 2000 Cogmind --------- Core Integrity 0/1600 Matter 205/300 Energy 61/100 System Corruption 15% Temperature Cool (8) Movement Core (200) Ox3 Location -1/Access Parts ------- > --- POWER (3) -------- (None) > --- PROPULSION (8) --- Biometal Heavy Treads > --- UTILITY (12) ----- Improved Signal Interpreter > --- WEAPON (2) ------- Nova Cannon > --- INVENTORY (5) ---- (None) Peak State ------------ > --- POWER ------------ Light Neutrino Core Light Particle Reactor Light Quantum Reactor > --- PROPULSION ------- VTOL Module Xenon Bombardment Thruster Cooled VTOL Module Cooled VTOL Module Field Propulsion Array Cooled Q-thruster > --- UTILITY ---------- Advanced Power Amplifier Advanced Coolant Injector Compact Battery Advanced Gravity Neutralizer Advanced Visual Processing Unit Long-range Sensor Array Improved Signal Interpreter Advanced Terrain Scanner Advanced ECM Suite Improved Reaction Control System Advanced Phase Shifter > --- WEAPON ----------- Nova Cannon > --- INVENTORY -------- Light Nuclear Core Advanced Gravity Neutralizer Centrium Greatsword [Rating: 135] Favorites ----------- Power Light Nuclear Core Engine Ion Engine Power Core Light Nuclear Core Reactor Light Quantum Reactor Propulsion Cooled VTOL Module Treads Light Treads Wheel Wheel Hover Unit Backup Propulsion III Flight Unit Cooled VTOL Module Utility Compact Battery Device Advanced Weight Redist. System Storage Compact Battery Processor Advanced Visual Processing Unit Hackware Hacking Suite Protection Propulsion Shielding Weapon Small Laser Energy Gun Small Laser Energy Cannon Heavy Particle Cannon Ballistic Gun Light Assault Rifle Ballistic Cannon Gauss Cannon Special Weapon RU-N14's Throwing Claymores v3 Slashing Weapon Centrium Greatsword Build | -11 -10 -9 -8 -7 -6 -6 -6 -5 -5 -5 -5 -4 -4 -3 -2 -1 ------- Run | Yrd Mat Mat Mat Fac Fac Low Low Fac Upp Upp War Pro Fac Res Res Acc Slots Evolved 18 | . . 2 2 2 2 . . 2 . . . . 2 2 2 2 Power 2 | . . . . . 1 . . 1 . . . . . . . . Propulsion 6 | . . 1 . 1 . . . . . . . . 2 1 1 . Utility 10 | . . 1 2 1 1 . . 1 . . . . . 1 1 2 Weapon . | . . . . . . . . . . . . . . . . . Parts Attached 79 | 6 5 3 7 19 2 . 1 2 . . 7 . 7 4 8 8 Power 11 | 1 1 . 1 1 1 . . 1 . . . . 2 . 1 2 Engine 3 | 1 1 . 1 . . . . . . . . . . . . . Core 5 | . . . . 1 1 . . 1 . . . . 2 . . . Reactor 3 | . . . . . . . . . . . . . . . 1 2 Propulsion 21 | 2 . . 5 7 . . 1 . . . . . 2 1 1 2 Treads 4 | 2 . . . . . . . . . . . . . . . 2 Leg . | . . . . . . . . . . . . . . . . . Wheel 1 | . . . . 1 . . . . . . . . . . . . Hover . | . . . . . . . . . . . . . . . . . Flight 16 | . . . 5 6 . . 1 . . . . . 2 1 1 . Utility 30 | 1 1 1 1 7 1 . . 1 . . 3 . 3 2 5 4 Device 22 | . . 1 1 2 1 . . 1 . . 3 . 2 2 5 4 Storage 2 | 1 . . . 1 . . . . . . . . . . . . Processor 4 | . 1 . . 2 . . . . . . . . 1 . . . Hackware 1 | . . . . 1 . . . . . . . . . . . . Protection 1 | . . . . 1 . . . . . . . . . . . . Artifact . | . . . . . . . . . . . . . . . . . Weapon 17 | 2 3 2 . 4 . . . . . . 4 . . 1 1 . Energy Gun 6 | 1 1 1 . 1 . . . . . . 2 . . . . . Energy Cannon 2 | . . . . 1 . . . . . . . . . 1 . . Ballistic Gun 2 | 1 . 1 . . . . . . . . . . . . . . Ballistic Cannon 5 | . 2 . . 2 . . . . . . 1 . . . . . Launcher . | . . . . . . . . . . . . . . . . . Special Weapon 1 | . . . . . . . . . . . 1 . . . . . Impact Weapon . | . . . . . . . . . . . . . . . . . Slashing Weapon 1 | . . . . . . . . . . . . . . . 1 . Piercing Weapon . | . . . . . . . . . . . . . . . . . Special Melee Weapon . | . . . . . . . . . . . . . . . . . Unidentified Prototypes 12 | . . . . 1 . . . 1 . . 5 . 2 . 3 . Parts Lost 46 | . . . 11 6 . . . . . . 1 . 2 2 2 22 Power 8 | . . . 2 . . . . . . . . . . 1 . 5 Propulsion 17 | . . . 6 2 . . . . . . . . 1 1 . 7 Utility 17 | . . . 1 3 . . . . . . 1 . 1 . 2 9 Weapon 4 | . . . 2 1 . . . . . . . . . . . 1 Highest Loss Streak 20 | . . . 8 2 . . . . . . 1 . 2 1 2 20 To Critical Strikes . | . . . . . . . . . . . . . . . . . Average Backups 5 | 3 7 7 6 4 4 5 5 5 5 5 4 5 2 1 3 2 Power 1 | . 1 1 . . 1 1 1 1 2 2 1 1 . . . . Propulsion 1 | 2 4 4 2 . . 1 . . . . . 2 . . . . Utility 2 | . 1 1 3 3 3 3 3 3 3 3 2 2 2 1 1 . Weapon . | . 1 . . . . . . . . . . . . . 1 1 Tool/Special . | . . . . . . . . . . . . . . . . . Unused Backups 14 | . 5 . 1 . . 1 . 1 2 . . 1 1 . 2 . Power 1 | . . . . . . . . . . . . . . . 1 . Propulsion 5 | . 5 . . . . . . . . . . . . . . . Utility 7 | . . . 1 . . 1 . 1 2 . . 1 . . 1 . Weapon 1 | . . . . . . . . . . . . . 1 . . . Tool/Special . | . . . . . . . . . . . . . . . . . Average Slot Usage (%) 83 | . 95 88 56 70 96 100 100 88 88 88 88 88 87 83 76 54 Engine 4 | . 14 11 6 . . . . . . . . . . . . . Core 5 | . . . . 2 13 13 13 11 11 11 11 11 14 13 10 3 Treads 4 | . 15 . . . . . . . . . . . . . . 1 Hover 4 | . 12 22 9 . . . . . . . . . . . . . Flight 14 | . . . 4 18 26 26 26 23 23 23 23 23 29 27 22 15 Device 14 | . . 11 7 14 16 20 20 22 23 23 23 23 21 19 23 20 Storage 7 | . 14 11 7 6 6 6 6 5 5 5 5 5 3 3 4 2 Processor 9 | . 9 11 9 8 13 13 13 11 11 11 11 11 10 9 8 7 Protection 2 | . . . . 1 6 6 6 5 5 5 5 5 5 4 1 . Energy Gun 5 | . 14 11 6 1 6 6 6 . . . 3 5 1 . . . Ballistic Gun 2 | . 9 6 5 . . . . . . . . . . . . . Ballistic Cannon 3 | . 4 4 . 8 6 6 6 5 5 5 1 . . . . . Peak Build Rating 135 | 6 11 15 15 40 47 48 50 60 55 55 68 60 68 91 127 135 Average Rating 40 | 4 8 13 10 23 45 47 49 54 54 55 58 60 61 82 104 88 On Entrance 45 | . 6 11 15 6 40 47 48 50 55 55 55 60 60 55 84 120 Avg Prop Armor Cover (%) 9 | . . . . 4 . . . . . . . . . . . 42 Naked Turns . | . . . . . . . . . . . . . . . . . Heaviest Build 54 | 12 14 16 16 20 26 26 26 27 27 27 28 28 33 49 53 54 Greatest Support 145 | 40 40 16 16 24 28 28 29 29 29 29 29 29 41 53 62 145 Greatest Overweight (x) 3 | . . . 3 3 . . . . . . . . . . . 1 Average Overweight (x) . | . . . . . . . . . . . . . . . . . Largest Inventory Capacity 8 | 8 8 8 8 5 5 5 5 5 5 5 5 5 5 5 5 5 Average Capacity 6 | 6 8 8 7 5 5 5 5 5 5 5 5 5 5 5 5 5 Most Carried 8 | 6 8 8 8 5 5 5 5 5 5 5 5 5 5 3 5 5 Average Carried 5 | 3 7 7 6 4 4 4 5 4 4 5 4 4 3 1 4 3 Final Capacity 8 | 8 8 8 5 5 5 5 5 5 5 5 5 5 5 5 5 5 Final Carried 8 | 6 8 8 5 5 5 5 5 5 5 5 5 5 5 2 5 . Class Distribution -------------------- 48% | Mutant 35% | Scout 8% | Scavenger-Scout 3% | Scientist-Scout 3% | Sprinter Dominant Class ---------------- Mutant | -10/Materials Mutant | -9/Materials Mutant | -8/Materials Mutant | -7/Factory Scavenger-Scout | -6/Factory Scavenger-Scout | -6/Lower Caves Scout | -6/Lower Caves Scout | -5/Factory Scout | -5/Upper Caves Scout | -5/Upper Caves Scout | -5/Warlord Scout | -4/Proximity Caves Scavenger-Scout | -4/Factory Scientist-Scout | -3/Research Scientist-Scout | -2/Research Scout | -1/Access Resources | -11 -10 -9 -8 -7 -6 -6 -6 -5 -5 -5 -5 -4 -4 -3 -2 -1 ----------- Run | Yrd Mat Mat Mat Fac Fac Low Low Fac Upp Upp War Pro Fac Res Res Acc Matter Collected 1375 | 160 252 . 98 376 . . 43 . 67 75 85 . . . 210 9 Remotely . | . . . . . . . . . . . . . . . . . Salvage Created 929 | . 491 . 170 268 . . . . . . . . . . . . Parts 69 | . 42 . 10 17 . . . . . . . . . . . . Haulers Intercepted 1 | . 1 . . . . . . . . . . . . . . . Recyclers Shooed . | . . . . . . . . . . . . . . . . . Parts Field Recycled . | . . . . . . . . . . . . . . . . . Retrieved Matter . | . . . . . . . . . . . . . . . . . Parts Self-Destructed 1 | . . . . . . . . . 1 . . . . . . . Prevented 2 | . . . . . . . . . 2 . . . . . . . Parts Restored . | . . . . . . . . . . . . . . . . . Kills | -11 -10 -9 -8 -7 -6 -6 -6 -5 -5 -5 -5 -4 -4 -3 -2 -1 ------- Run | Yrd Mat Mat Mat Fac Fac Low Low Fac Upp Upp War Pro Fac Res Res Acc Combat Hostiles Destroyed 31 | . 17 . 5 9 . . . . . . . . . . . . Guns 19 | . 12 . 5 2 . . . . . . . . . . . . Cannons 11 | . 5 . . 6 . . . . . . . . . . . . AOE 1 | . . . . 1 . . . . . . . . . . . . Classes Destroyed 7 | . 5 . 1 1 . . . . . . . . . . . . Worker 3 | . 3 . . . . . . . . . . . . . . . Hauler 1 | . 1 . . . . . . . . . . . . . . . Recycler 2 | . . . . 2 . . . . . . . . . . . . Operator 1 | . 1 . . . . . . . . . . . . . . . Swarmer 19 | . 8 . 3 8 . . . . . . . . . . . . Grunt 10 | . 9 . . 1 . . . . . . . . . . . . Sentry 2 | . . . 2 . . . . . . . . . . . . . Best Kill Streak 4 | . 3 . 3 4 . . . . . . . . . . . . Combat Bots Only 4 | . 3 . 3 4 . . . . . . . . . . . . Max Kills in Single Turn 1 | . 1 . 1 1 . . . . . . . . . . . . Gunslinging . | . . . . . . . . . . . . . . . . . Exploded 1 | . . . . 1 . . . . . . . . . . . . Melee . | . . . . . . . . . . . . . . . . . Uniques/NPCs Destroyed . | . . . . . . . . . . . . . . . . . Combat | -11 -10 -9 -8 -7 -6 -6 -6 -5 -5 -5 -5 -4 -4 -3 -2 -1 -------- Run | Yrd Mat Mat Mat Fac Fac Low Low Fac Upp Upp War Pro Fac Res Res Acc Hostile Shots Fired 724 | . 84 8 113 50 . . . . . 8 2 . 49 19 35 356 Missed 373 | . 25 4 34 22 . . . . . 6 1 . 30 14 25 212 Hits 351 | . 59 4 79 28 . . . . . 2 1 . 19 5 10 144 Melee 29 | . . . . . . . . . . . . . . . . 29 Projectile 322 | . 59 4 79 28 . . . . . 2 1 . 19 5 10 115 AOE 3 | . . . . . . . . . . . . . . . . 3 Critical Strikes 23 | . . 1 3 . . . . . . . . . 3 . . 16 Actively Blocked 1 | . . . . . . . . . . . . . 1 . . . Part Disruptions 3 | . . . . . . . . . . . . . . 1 . 2 Damage Taken 7002 | . 573 56 985 497 . . . . . 36 113 . 380 115 215 4032 Core 2410 | . 135 29 389 95 . . . . . . 34 . 80 . 48 1600 Absorbed by Shields . | . . . . . . . . . . . . . . . . . Redirected to Shielding 56 | . . . . 9 . . . . . . . . 25 7 15 . Regen/Repaired (Parts) 26 | . . . . . . . . . . . 26 . . . . . Core Remaining (%) 83 | 100 46 92 29 86 . . 100 . . . . 96 93 100 96 . Volleys Fired 146 | . 70 . 23 32 . . . . . . 5 . . . 8 8 Largest 2 | . 2 . 2 2 . . . . . . 1 . . . 1 1 Hottest 125 | . 70 . 83 125 . . . . . . 40 . . . 113 113 Shots Fired 258 | . 136 . 43 58 . . . . . . 5 . . . 8 8 Gun 166 | . 109 . 43 9 . . . . . . 5 . . . . . Cannon 92 | . 27 . . 49 . . . . . . . . . . 8 8 Launcher . | . . . . . . . . . . . . . . . . . Special . | . . . . . . . . . . . . . . . . . Kinetic 139 | . 71 . 20 48 . . . . . . . . . . . . Thermal 105 | . 65 . 23 1 . . . . . . . . . . 8 8 Explosive . | . . . . . . . . . . . . . . . . . Electromagnetic 9 | . . . . 9 . . . . . . . . . . . . Entropic 5 | . . . . . . . . . . . 5 . . . . . Robot Hit Streak 20 | . 9 . 15 20 . . . . . . . . . . . . Robot Miss Streak 5 | . 5 . 2 3 . . . . . . . . . . . . Penetration Max . | . . . . . . . . . . . . . . . . . Secondary Targets 3 | . 3 . . . . . . . . . . . . . . . Max Gunslinging Chain 1 | . 1 . . . . . . . . . . . . . . . Shots Hit Robots 146 | . 81 . 36 28 . . . . . . . . . . . 1 Core Hits 52 | . 34 . 7 11 . . . . . . . . . . . . Critical Kills 1 | . . . 1 . . . . . . . . . . . . . Critical Parts Destroyed . | . . . . . . . . . . . . . . . . . Critical Strikes 4 | . . . 2 2 . . . . . . . . . . . . Burn 1 | . . . 1 . . . . . . . . . . . . . Destroy 1 | . . . 1 . . . . . . . . . . . . . Blast 1 | . . . . 1 . . . . . . . . . . . . Corrupt 1 | . . . . 1 . . . . . . . . . . . . Melee Attacks 4 | . . . . . . . . . . . . . . . . 4 Impact . | . . . . . . . . . . . . . . . . . Slashing 4 | . . . . . . . . . . . . . . . . 4 Piercing . | . . . . . . . . . . . . . . . . . Sneak Attacks . | . . . . . . . . . . . . . . . . . Combat Hostiles . | . . . . . . . . . . . . . . . . . Follow-up Attacks . | . . . . . . . . . . . . . . . . . Damage Inflicted 2296 | . 960 . 562 707 . . . . . . . . . . . 67 Guns 1378 | . 721 . 559 98 . . . . . . . . . . . . Cannons 825 | . 216 . . 609 . . . . . . . . . . . . Explosions . | . . . . . . . . . . . . . . . . . Melee 67 | . . . . . . . . . . . . . . . . 67 Ramming 26 | . 23 . 3 . . . . . . . . . . . . . Kinetic 1242 | . 477 . 181 584 . . . . . . . . . . . . Thermal 863 | . 460 . 378 25 . . . . . . . . . . . . Explosive . | . . . . . . . . . . . . . . . . . Electromagnetic 98 | . . . . 98 . . . . . . . . . . . . Impact . | . . . . . . . . . . . . . . . . . Slashing 67 | . . . . . . . . . . . . . . . . 67 Piercing . | . . . . . . . . . . . . . . . . . Highest Corruption 14 | . 1 . 1 1 . . . . . . . . 1 1 . 14 Average Corruption 1 | . 1 . 1 1 . . . . . . . . 1 1 . 8 Corruption Purged . | . . . . . . . . . . . . . . . . . Corruption Blocked . | . . . . . . . . . . . . . . . . . Effects 23 | . 14 . . . . . . . . . . . . 1 . 8 Message Errors 6 | . 4 . . . . . . . . . . . . . . 2 Matter Fused 7 | . 5 . . . . . . . . . . . . . . 2 Heat Flow Errors 2 | . 1 . . . . . . . . . . . . 1 . . Energy Discharges 1 | . 1 . . . . . . . . . . . . . . . Data Loss (minor) 2 | . 1 . . . . . . . . . . . . . . 1 Data Loss (major) 1 | . 1 . . . . . . . . . . . . . . . Misfires 1 | . 1 . . . . . . . . . . . . . . . Alerts 1 | . . . . . . . . . . . . . . . . 1 Misdirections 2 | . . . . . . . . . . . . . . . . 2 Overload Shots . | . . . . . . . . . . . . . . . . . Overflow Damage 80 | . . . . 60 . . . . . . . . . . . 20 Projectiles 60 | . . . . 60 . . . . . . . . . . . . Explosions . | . . . . . . . . . . . . . . . . . Melee 20 | . . . . . . . . . . . . . . . . 20 Knockbacks 11 | . 4 . . 7 . . . . . . . . . . . . Impact . | . . . . . . . . . . . . . . . . . Kinetic 11 | . 4 . . 7 . . . . . . . . . . . . Secondary . | . . . . . . . . . . . . . . . . . Self-Inflicted Damage 1 | . . . 1 . . . . . . . . . . . . . Shots . | . . . . . . . . . . . . . . . . . Rammed 3 | . 2 . 1 . . . . . . . . . . . . . Targets Rammed 5 | . 4 . 1 . . . . . . . . . . . . . Kicked . | . . . . . . . . . . . . . . . . . Crushed 2 | . 2 . . . . . . . . . . . . . . . Highest Temperature 240 | . 232 10 232 70 . . . . . 3 6 . 240 . 42 190 Average Temperature 60 | . 50 10 66 21 . . . . . 3 3 . 77 . 16 95 Received Heat Transfer 738 | . 180 36 342 81 . . . . . 9 9 . 18 . . 63 Effects 2 | . 2 . . . . . . . . . . . . . . . Interference 2 | . 2 . . . . . . . . . . . . . . . Siege Activations . | . . . . . . . . . . . . . . . . . Martial Activations . | . . . . . . . . . . . . . . . . . Shielding Activations . | . . . . . . . . . . . . . . . . . Robots Disrupted . | . . . . . . . . . . . . . . . . . Combat Hostiles . | . . . . . . . . . . . . . . . . . Robots Corrupted . | . . . . . . . . . . . . . . . . . Combat Hostiles . | . . . . . . . . . . . . . . . . . Parts Fried . | . . . . . . . . . . . . . . . . . Impact Corruptions . | . . . . . . . . . . . . . . . . . Robots Melted . | . . . . . . . . . . . . . . . . . Combat Hostiles . | . . . . . . . . . . . . . . . . . Parts Melted 3 | . 1 . 2 . . . . . . . . . . . . . Heat Transferred 1950 | . 1025 . 888 37 . . . . . . . . . . . . Parts Sabotaged . | . . . . . . . . . . . . . . . . . Parts Stolen . | . . . . . . . . . . . . . . . . . Parts Stripped . | . . . . . . . . . . . . . . . . . Power Chain Reactions . | . . . . . . . . . . . . . . . . . Alert | -11 -10 -9 -8 -7 -6 -6 -6 -5 -5 -5 -5 -4 -4 -3 -2 -1 ------- Run | Yrd Mat Mat Mat Fac Fac Low Low Fac Upp Upp War Pro Fac Res Res Acc Maximum Alert Level 1 | . . . . 1 . . . . . . . . . . . . Low Security (%) 91 | 100 100 100 100 57 100 . . 100 . . . . 100 100 100 100 Level 1 8 | . . . . 42 . . . . . . . . . . . . Level 2 . | . . . . . . . . . . . . . . . . . Level 3 . | . . . . . . . . . . . . . . . . . Level 4 . | . . . . . . . . . . . . . . . . . Level 5 . | . . . . . . . . . . . . . . . . . High Security . | . . . . . . . . . . . . . . . . . Max Security . | . . . . . . . . . . . . . . . . . Peak Influence 304 | . 188 59 199 304 159 . . 27 . . . . 80 35 35 118 Initial 144 | . . 59 14 90 144 . . 18 . . . . . 26 . . Average 74 | . 64 36 106 177 146 . . 9 . . . . 39 17 6 22 Influence Increases 2410 | . 542 45 415 667 15 . 30 44 . 30 45 . 154 31 69 323 Destroy 0b10 Robot/C 620 | . 340 . 100 180 . . . . . . . . . . . . Destroy 0b10 Robot/NC 35 | . 25 . . 10 . . . . . . . . . . . . Destroy Leader 122 | . 72 . 30 20 . . . . . . . . . . . . Successful Hack 115 | . 28 . . 24 . . . 29 . . . . 4 16 . 14 Disable Machine 45 | . 15 . . 30 . . . . . . . . . . . . Destroy Structure 63 | . 2 . . 13 . . . . . . . . . . 24 24 Partial Spotted 195 | . . 15 . . 15 . . 15 . . . . 45 15 . 90 Lose Combat Pursuer 1215 | . 60 30 285 390 . . 30 . . 30 45 . 105 . 45 195 Influence Decreases 2292 | . 399 154 250 571 171 92 47 74 . 20 48 7 104 81 69 205 Entered New Map 479 | . . 84 20 109 151 52 10 12 . . 10 7 . 24 . . Time Decay 1398 | . 399 70 120 302 20 40 37 62 . 20 38 . 84 37 63 106 Search Patrol Dispatched 100 | . . . . 100 . . . . . . . . . . . . Lost Part 315 | . . . 110 60 . . . . . . . . 20 20 6 99 Squads Dispatched 13 | . 4 . 1 1 1 . . . . . . . 1 . . 5 Investigation 5 | . 3 . . 1 1 . . . . . . . . . . . Extermination 3 | . . . . . . . . . . . . . 1 . . 2 Reinforcement 5 | . 1 . 1 . . . . . . . . . . . . 3 Assault . | . . . . . . . . . . . . . . . . . Garrison . | . . . . . . . . . . . . . . . . . Intercept . | . . . . . . . . . . . . . . . . . Searches Triggered 1 | . . . . 1 . . . . . . . . . . . . Construction Impeded . | . . . . . . . . . . . . . . . . . Haulers Reinforced . | . . . . . . . . . . . . . . . . . Active Scanning Responses . | . . . . . . . . . . . . . . . . . Cargo Convoy Interrupts . | . . . . . . . . . . . . . . . . . Stealth | -11 -10 -9 -8 -7 -6 -6 -6 -5 -5 -5 -5 -4 -4 -3 -2 -1 --------- Run | Yrd Mat Mat Mat Fac Fac Low Low Fac Upp Upp War Pro Fac Res Res Acc Distress Signals 15 | . 1 . 1 2 . . . . . . . . 1 2 2 6 Communications Jammed . | . . . . . . . . . . . . . . . . . Distress Signals . | . . . . . . . . . . . . . . . . . Times Spotted 292 | . 38 3 31 35 1 . 2 1 . 9 40 . 26 8 20 78 Peak Tracking Total 22 | . 4 6 18 7 1 . 2 1 . 5 16 . 12 9 16 22 Tactical Retreats 44 | . 3 1 6 10 . . 1 . . 2 3 . 5 . 3 10 ECM-based Alert Blocks 68 | . . . . . . . . . . 7 . . 18 . 9 34 Traps | -11 -10 -9 -8 -7 -6 -6 -6 -5 -5 -5 -5 -4 -4 -3 -2 -1 ------- Run | Yrd Mat Mat Mat Fac Fac Low Low Fac Upp Upp War Pro Fac Res Res Acc Traps Triggered 5 | . 2 . . 2 . . . . . . . . 1 . . . Indirectly . | . . . . . . . . . . . . . . . . . Trap Hack Attempts . | . . . . . . . . . . . . . . . . . Triggered . | . . . . . . . . . . . . . . . . . Disarmed . | . . . . . . . . . . . . . . . . . Reprogrammed . | . . . . . . . . . . . . . . . . . Reused . | . . . . . . . . . . . . . . . . . Traps Extracted . | . . . . . . . . . . . . . . . . . Installed . | . . . . . . . . . . . . . . . . . Triggered . | . . . . . . . . . . . . . . . . . Machines | -11 -10 -9 -8 -7 -6 -6 -6 -5 -5 -5 -5 -4 -4 -3 -2 -1 ---------- Run | Yrd Mat Mat Mat Fac Fac Low Low Fac Upp Upp War Pro Fac Res Res Acc Machines Disabled 3 | . 1 . . 2 . . . . . . . . . . . . Max in Single Turn 1 | . 1 . . 1 . . . . . . . . . . . . Garrison Access 1 | . . . . . . . . . . . . . . . 1 . Machines Repaired . | . . . . . . . . . . . . . . . . . Machines Dismantled . | . . . . . . . . . . . . . . . . . Machines Sabotaged . | . . . . . . . . . . . . . . . . . Overloaded Fab Kills . | . . . . . . . . . . . . . . . . . Hacking | -11 -10 -9 -8 -7 -6 -6 -6 -5 -5 -5 -5 -4 -4 -3 -2 -1 --------- Run | Yrd Mat Mat Mat Fac Fac Low Low Fac Upp Upp War Pro Fac Res Res Acc Machines Accessed 50 | . 10 3 2 7 2 . . 6 . . 6 . 5 5 2 2 Terminals 24 | . 7 1 2 4 2 . . 4 . . . . 2 1 . 1 Fabricators 5 | . . . . 2 . . . . . . . . . 2 . 1 Repair Stations 4 | . 1 1 . . . . . . . . . . 1 . 1 . Recycling Units 4 | . 2 . . 1 . . . . . . . . 1 . . . Scanalyzers 4 | . . 1 . . . . . 1 . . . . 1 1 . . Garrison Access 3 | . . . . . . . . 1 . . . . . 1 1 . Total Hacks 114 | . 30 7 7 14 4 . . 10 . . 19 . 8 8 3 4 Successful 67 | . 17 4 3 9 . . . 4 . . 19 . 5 3 1 2 Failed 47 | . 13 3 4 5 4 . . 6 . . . . 3 5 2 2 Catastrophic 10 | . 2 . 1 1 1 . . . . . . . 1 2 1 1 Database Lockouts . | . . . . . . . . . . . . . . . . . Manual 36 | . 14 2 . 6 1 . . 3 . . . . 3 4 . 3 Terminals 53 | . 22 2 7 7 4 . . 5 . . . . 2 2 . 2 Fabricators 8 | . . . . 4 . . . . . . . . . 2 . 2 Repair Stations 6 | . 3 1 . . . . . . . . . . 1 . 1 . Recycling Units 9 | . 5 . . 3 . . . . . . . . 1 . . . Scanalyzers 13 | . . 4 . . . . . 2 . . . . 4 3 . . Garrison Access 6 | . . . . . . . . 3 . . . . . 1 2 . Terminal Hacks 34 | . 7 . 3 1 . . . 2 . . 19 . . 1 . 1 Record 14 | . . . . . . . . . . . 12 . . 1 . 1 Robot Analysis 2 | . 2 . . . . . . . . . . . . . . . Prototype ID Bank 6 | . . . . . . . . . . . 6 . . . . . Open Door 1 | . . . . . . . . . . . 1 . . . . . Open DSF 1 | . . . . 1 . . . . . . . . . . . . Branch Access Points 2 | . 1 . 1 . . . . . . . . . . . . . Scanalyzer Index 1 | . . . . . . . . 1 . . . . . . . . Alert Level 2 | . 1 . . . . . . 1 . . . . . . . . Locate Traps 1 | . 1 . . . . . . . . . . . . . . . Recall Investigation 1 | . . . 1 . . . . . . . . . . . . . Recall Reinforcements 1 | . . . 1 . . . . . . . . . . . . . Hauler Manifests 1 | . 1 . . . . . . . . . . . . . . . Zone Layout 1 | . 1 . . . . . . . . . . . . . . . Fabricator Hacks 3 | . . . . 3 . . . . . . . . . . . . Network Status 1 | . . . . 1 . . . . . . . . . . . . Load Schematic 1 | . . . . 1 . . . . . . . . . . . . Build 1 | . . . . 1 . . . . . . . . . . . . Repair Station Hacks 3 | . 2 1 . . . . . . . . . . . . . . Refit 3 | . 2 1 . . . . . . . . . . . . . . Recycling Unit Hacks 6 | . 4 . . 2 . . . . . . . . . . . . Process 1 | . 1 . . . . . . . . . . . . . . . Report Inventory 3 | . 2 . . 1 . . . . . . . . . . . . Retrieve Matter 1 | . 1 . . . . . . . . . . . . . . . Retrieve Components 1 | . . . . 1 . . . . . . . . . . . . Scanalyzer 9 | . . 3 . . . . . 2 . . . . 3 1 . . Insert Component 2 | . . 1 . . . . . 1 . . . . . . . . Analyze 2 | . . 1 . . . . . 1 . . . . . . . . Retrieve Study 5 | . . 1 . . . . . . . . . . 3 1 . . Garrison Access Hacks 1 | . . . . . . . . . . . . . . . 1 . Seal Access 1 | . . . . . . . . . . . . . . . 1 . Unauthorized Hacks 10 | . 4 . . 2 . . . . . . . . 2 1 . 1 Terminals 4 | . 3 . . 1 . . . . . . . . . . . . Track 1 | . 1 . . . . . . . . . . . . . . . Botnet 3 | . 2 . . 1 . . . . . . . . . . . . Fabricators 2 | . . . . 1 . . . . . . . . . . . 1 Report 2 | . . . . 1 . . . . . . . . . . . 1 Repair Stations 1 | . . . . . . . . . . . . . 1 . . . Mechanics 1 | . . . . . . . . . . . . . 1 . . . Recycling Units 2 | . 1 . . . . . . . . . . . 1 . . . Recyclers 2 | . 1 . . . . . . . . . . . 1 . . . Scanalyzers 1 | . . . . . . . . . . . . . . 1 . . Researchers 1 | . . . . . . . . . . . . . . 1 . . Garrison Access . | . . . . . . . . . . . . . . . . . Data Cores Recovered 1 | . 1 . . . . . . . . . . . . . . . Used 1 | . 1 . . . . . . . . . . . . . . . Hacking Detections 36 | . 9 2 2 4 2 . . 6 . . . . 4 4 1 2 Full Trace Events 5 | . 2 . 1 1 1 . . . . . . . . . . . Feedback Events 1 | . 1 . . . . . . . . . . . . . . . Corruption 1 | . 1 . . . . . . . . . . . . . . . Feedback Blocked . | . . . . . . . . . . . . . . . . . Robot Schematics Acquired . | . . . . . . . . . . . . . . . . . Robots Built . | . . . . . . . . . . . . . . . . . Authchips . | . . . . . . . . . . . . . . . . . Time . | . . . . . . . . . . . . . . . . . Total Robot Build Rating . | . . . . . . . . . . . . . . . . . Part Schematics Acquired 2 | . . 1 . . . . . 1 . . . . . . . . Parts Built 2 | . . . . 2 . . . . . . . . . . . . Authchips . | . . . . . . . . . . . . . . . . . Time 51 | . . . . 51 . . . . . . . . . . . . Total Part Build Rating 2 | . . . . 2 . . . . . . . . . . . . Part Studies Acquired 5 | . . 1 . . . . . . . . . . 3 1 . . Parts Repaired . | . . . . . . . . . . . . . . . . . Time . | . . . . . . . . . . . . . . . . . Parts Recycled . | . . . . . . . . . . . . . . . . . Recycled Matter 179 | . 179 . . . . . . . . . . . . . . . Retrieved Matter 254 | . 254 . . . . . . . . . . . . . . . Retrieved Components 3 | . . . . 3 . . . . . . . . . . . . Parts Scanalyzed 2 | . . 1 . . . . . 1 . . . . . . . . Part Schematics Acquired 2 | . . 1 . . . . . 1 . . . . . . . . Parts Damaged . | . . . . . . . . . . . . . . . . . Bothacking | -11 -10 -9 -8 -7 -6 -6 -6 -5 -5 -5 -5 -4 -4 -3 -2 -1 ------------ Run | Yrd Mat Mat Mat Fac Fac Low Low Fac Upp Upp War Pro Fac Res Res Acc Used RIF Installer . | . . . . . . . . . . . . . . . . . Robots Hacked . | . . . . . . . . . . . . . . . . . Non-combat . | . . . . . . . . . . . . . . . . . Combat . | . . . . . . . . . . . . . . . . . Robot Hacks Applied . | . . . . . . . . . . . . . . . . . Relay Couplers Released . | . . . . . . . . . . . . . . . . . Fabnet Peak Effective % . | . . . . . . . . . . . . . . . . . Robots Rewired . | . . . . . . . . . . . . . . . . . Allies Hacked . | . . . . . . . . . . . . . . . . . Hacks Repelled . | . . . . . . . . . . . . . . . . . Allies | -11 -10 -9 -8 -7 -6 -6 -6 -5 -5 -5 -5 -4 -4 -3 -2 -1 -------- Run | Yrd Mat Mat Mat Fac Fac Low Low Fac Upp Upp War Pro Fac Res Res Acc Total Allies . | . . . . . . . . . . . . . . . . . Largest Group . | . . . . . . . . . . . . . . . . . Highest-Rated Group . | . . . . . . . . . . . . . . . . . Highest-Rated Ally . | . . . . . . . . . . . . . . . . . Total Orders . | . . . . . . . . . . . . . . . . . Ally Attacks . | . . . . . . . . . . . . . . . . . Total Damage . | . . . . . . . . . . . . . . . . . Kills . | . . . . . . . . . . . . . . . . . Allies Corrupted . | . . . . . . . . . . . . . . . . . Allies Melted 3 | . . . . . . . . . . . 1 . . . 2 . Intel | -11 -10 -9 -8 -7 -6 -6 -6 -5 -5 -5 -5 -4 -4 -3 -2 -1 ------- Run | Yrd Mat Mat Mat Fac Fac Low Low Fac Upp Upp War Pro Fac Res Res Acc Active Infowar (turns) 3009 | . . 142 184 376 52 91 84 151 113 201 660 115 245 85 280 230 Optics 2446 | . . . . 139 52 91 84 151 113 201 660 115 245 85 280 230 Sensors 2844 | . . 142 184 270 52 91 84 151 113 201 658 115 245 82 280 176 Terrain 158 | . . . . . . . . . . . . . . . . 158 ECM 255 | . . . . . 1 . . . . 27 . . 63 6 50 108 Robot Analysis Total 2 | . 2 . . . . . . . . . . . . . . . Derelict Logs Recovered 5 | . . . . . . 1 1 . . 2 . 1 . . . . Drone Launches . | . . . . . . . . . . . . . . . . . Drone Recoveries . | . . . . . . . . . . . . . . . . . Exploration | -11 -10 -9 -8 -7 -6 -6 -6 -5 -5 -5 -5 -4 -4 -3 -2 -1 ------------- Run | Yrd Mat Mat Mat Fac Fac Low Low Fac Upp Upp War Pro Fac Res Res Acc Turns Passed 4776 | 78 1249 142 244 677 52 91 84 151 113 201 660 115 245 85 280 309 Spaces Moved 9575 | 42 845 174 186 1131 176 317 297 519 405 721 1318 414 757 343 948 982 Core 234 | 3 . . 79 1 . . . . . . . . . . . 151 Treads 404 | 39 363 . . . . . . . . . . . . . . 2 Legs . | . . . . . . . . . . . . . . . . . Wheels 59 | . . . . 59 . . . . . . . . . . . . Hover 687 | . 482 174 31 . . . . . . . . . . . . . Flight 8191 | . . . 76 1071 176 317 297 519 405 721 1318 414 757 343 948 829 Fastest Speed 18 | 50 76 76 34 29 27 27 27 27 27 27 27 27 20 21 20 18 Average Speed 37 | 152 112 76 56 42 27 27 27 27 27 27 27 27 20 21 22 25 Slowest Speed 200 | 160 160 76 200 200 27 27 27 27 27 27 27 27 27 25 25 145 Overloaded Moves 68 | . . . . . . . . . . . . . . . . 68 Propulsion Burnouts . | . . . . . . . . . . . . . . . . . Robots Hopped 42 | . . . 3 8 . . . 10 1 1 . . 4 2 8 5 Potential Cave-ins 2 | . . . . . . . . . . . 2 . . . . . Cave-ins Triggered . | . . . . . . . . . . . . . . . . . Exploration Rate (%) 41 | 4 96 25 28 32 6 65 41 9 60 72 91 73 22 14 28 40 Regions Visited 16 Branch Regions 6 Pre-discovered Areas 1 | . . . . . . . . . . . 1 . . . . . Known Exits Taken 15 | . 1 1 1 1 1 1 1 1 1 1 1 1 1 1 1 . Unknown Exits Taken 1 | 1 . . . . . . . . . . . . . . . . Scrap Searched 11 | . . . . . . 2 2 . 1 3 . 3 . . . . Spaces Dug 22 | . . . . 1 . . . . . . 5 . . . 8 8 Terrain Destroyed 32 | . . . . 11 . . . . . . 5 . . . 8 8 Melee . | . . . . . . . . . . . . . . . . . Projectile 32 | . . . . 11 . . . . . . 5 . . . 8 8 AOE . | . . . . . . . . . . . . . . . . . Terrain Rammed . | . . . . . . . . . . . . . . . . . Walls Destroyed . | . . . . . . . . . . . . . . . . . Machines Disabled . | . . . . . . . . . . . . . . . . . Actions | -11 -10 -9 -8 -7 -6 -6 -6 -5 -5 -5 -5 -4 -4 -3 -2 -1 --------- Run | Yrd Mat Mat Mat Fac Fac Low Low Fac Upp Upp War Pro Fac Res Res Acc Total 10480 | 53 1021 184 278 1251 179 322 300 520 407 725 1616 417 838 352 995 1022 Wait 600 | . 79 1 60 65 . 4 1 6 . 6 274 . 71 1 23 9 Move 9476 | 41 844 173 179 1115 175 316 296 498 402 718 1317 413 748 338 931 972 Hop 41 | . . . 3 7 . . . 10 1 1 . . 4 2 8 5 Pick Up 42 | 6 8 2 2 6 2 1 1 1 2 . 2 2 2 1 3 1 Fast Attach 57 | 6 4 2 2 14 . . . 1 . . 8 . 4 3 7 6 Attach 40 | . 1 1 6 7 2 . . 1 . . 1 . 3 4 4 10 Detach 17 | . . . 2 1 . . . 1 . . . . 1 1 6 5 Swap 5 | . . 1 . . . . 1 . . . . . 2 . 1 . Drop 47 | . 11 4 . 4 . 1 1 2 2 . 9 2 3 2 4 2 Fire 146 | . 70 . 23 32 . . . . . . 5 . . . 8 8 Melee 4 | . . . . . . . . . . . . . . . . 4 Ram 1 | . . . 1 . . . . . . . . . . . . . Kick . | . . . . . . . . . . . . . . . . . Crush 4 | . 4 . . . . . . . . . . . . . . . Escape Stasis . | . . . . . . . . . . . . . . . . . Rewire . | . . . . . . . . . . . . . . . . . Trap . | . . . . . . . . . . . . . . . . . Miscellaneous . | . . . . . . . . . . . . . . . . . Route ------- -11/Scrapyard -10/Materials (discovered 5 exits: *Mat x3 / *Min / *Sub) -9/Materials -8/Materials -7/Factory -6/Factory -6/Lower Caves -6/Lower Caves -5/Factory (discovered 2 exits: Fac / *Upp) -5/Upper Caves -5/Upper Caves -5/Warlord -4/Proximity Caves -4/Factory -3/Research (discovered 3 exits: *Res / Arm / Qua) -2/Research (discovered 2 exits: *Acc / *Tes) -1/Access History --------- Turn | Location | Event 13 | -11/Scrapyard | Discovered new exit (range 14) 79 | -11/Scrapyard | Entered Materials 230 | -10/Materials | Discovered new exit (range 9) 315 | -10/Materials | Build established: Mutant 398 | -10/Materials | Identified exit to Mines 454 | -10/Materials | Discovered new exit (range 18) 489 | -10/Materials | Identified exit to Materials 594 | -10/Materials | Discovered exit to Materials (range 14) 767 | -10/Materials | Discovered exit to Materials (range 16) 1028 | -10/Materials | Core integrity fell below 50% 1275 | -10/Materials | Discovered new exit (range 8) 1281 | -10/Materials | Identified exit to Subcaves 1328 | -10/Materials | Entered another Materials area 1328 | -9/Materials | Evolved 2 slots: Propulsion x1, Utility x1 1452 | -9/Materials | Discovered new exit (range 16) 1470 | -9/Materials | Identified exit to Materials 1470 | -9/Materials | Entered another Materials area 1470 | -8/Materials | Evolved 2 slots: Utility x2 1623 | -8/Materials | Lost 3 parts (1p2n) 1683 | -8/Materials | Core integrity fell below 50% 1712 | -8/Materials | Lost 8 parts (1p4n1u2w) 1712 | -8/Materials | Discovered new exit (range 4) 1713 | -8/Materials | Identified exit to Factory 1714 | -8/Materials | Entered Factory 1714 | -7/Factory | Evolved 2 slots: Propulsion x1, Utility x1 1847 | -7/Factory | Fabricated Flight Unit? 2114 | -7/Factory | Search patrols dispatched 2304 | -7/Factory | Discovered new exit (range 14) 2365 | -7/Factory | Identified exit to Factory 2391 | -7/Factory | Entered another Factory area 2391 | -6/Factory | Evolved 2 slots: Power x1, Utility x1 2435 | -6/Factory | Discovered new exit (range 6) 2436 | -6/Factory | Identified exit to Lower Caves 2443 | -6/Factory | Entered Lower Caves 2480 | -6/Lower Caves | Encountered a Warlord checkpoint 2499 | -6/Lower Caves | Learned 4 Factory zone layouts 2530 | -6/Lower Caves | Discovered new exit (range 14) 2532 | -6/Lower Caves | Identified exit to Lower Caves 2534 | -6/Lower Caves | Entered another Lower Caves area 2548 | -6/Lower Caves | Learned Factory emergency access door positions 2588 | -6/Lower Caves | Discovered new exit (range 5) 2590 | -6/Lower Caves | Identified exit to Factory 2618 | -6/Lower Caves | Entered Factory 2618 | -5/Factory | Evolved 2 slots: Power x1, Utility x1 2619 | -5/Factory | Identified exit to Factory 2648 | -5/Factory | Discovered new exit (range 12) 2653 | -5/Factory | Identified exit to Upper Caves 2769 | -5/Factory | Entered Upper Caves 2854 | -5/Upper Caves | Build established: Scout 2862 | -5/Upper Caves | Discovered new exit (range 10) 2864 | -5/Upper Caves | Identified exit to Upper Caves 2882 | -5/Upper Caves | Entered another Upper Caves area 2929 | -5/Upper Caves | Learned Factory garrison access intel 2935 | -5/Upper Caves | Attracted the attention of an 0b10 checkpoint 2940 | -5/Upper Caves | Learned 4 Factory zone layouts 3022 | -5/Upper Caves | Encountered a Warlord checkpoint 3080 | -5/Upper Caves | Discovered new exit (range 10) 3083 | -5/Upper Caves | Identified exit to Warlord 3083 | -5/Upper Caves | Entered Warlord 3166 | -5/Warlord | Found Prototype Special Weapon 3166 | -5/Warlord | Identified RU-N14's Throwing Claymores v3 3187 | -5/Warlord | Learned Testing trap positions 3187 | -5/Warlord | Learned 4 Armory zone layouts 3187 | -5/Warlord | Learned 4 Research zone layouts 3187 | -5/Warlord | Learned 4 Command zone layouts 3187 | -5/Warlord | Learned Factory terminal intel 3187 | -5/Warlord | Learned Factory repair station intel 3187 | -5/Warlord | Learned Armory terminal intel 3187 | -5/Warlord | Learned Research terminal intel 3200 | -5/Warlord | Found Prototype Device 3200 | -5/Warlord | Identified Minesniffer Drone Bay 3251 | -5/Warlord | Warlord's base attacked by MAIN.C 3271 | -5/Warlord | Met Warlord 3297 | -5/Warlord | Found Prototype Energy Gun 3297 | -5/Warlord | Identified Vortex Rifle 3300 | -5/Warlord | Found Prototype Energy Gun 3300 | -5/Warlord | Identified Vortex Shotgun 3443 | -5/Warlord | Found Prototype Ballistic Cannon 3443 | -5/Warlord | Identified Hvy. Autocannon 3479 | -5/Warlord | Lost 3 allies 3601 | -5/Warlord | Warlord forces counterattacked 3607 | -5/Warlord | Lost 10 allies 3712 | -5/Warlord | Spotted Executioner 3724 | -5/Warlord | Spotted Executioner 3726 | -5/Warlord | Spotted Executioner 3726 | -5/Warlord | Spotted Executioner 3737 | -5/Warlord | Discovered new exit (range 18) 3742 | -5/Warlord | Identified exit to Proximity Caves 3743 | -5/Warlord | Entered Proximity Caves 3771 | -4/Proximity Caves | Lost 14 allies 3855 | -4/Proximity Caves | Learned location of 1 exit from Research 3857 | -4/Proximity Caves | Discovered exit to Factory (range 5) 3858 | -4/Proximity Caves | Entered Factory 3858 | -4/Factory | Evolved 2 slots: Propulsion x2 3860 | -4/Factory | Loaded intel: 26 terminal locations 3861 | -4/Factory | Loaded intel: 6 repair station locations 3862 | -4/Factory | Loaded intel: 4 garrison access locations 4010 | -4/Factory | Spotted B-86 Titan 4066 | -4/Factory | Found Prototype Processor 4066 | -4/Factory | Identified Exp. Melee Analysis Suite 4076 | -4/Factory | Found Prototype Device 4076 | -4/Factory | Identified Adv. EM Shield 4092 | -4/Factory | Discovered new exit (range 13) 4103 | -4/Factory | Identified exit to Research 4103 | -4/Factory | Entered Research 4103 | -3/Research | Evolved 2 slots: Propulsion x1, Utility x1 4104 | -3/Research | Identified exit to Quarantine 4105 | -3/Research | Identified exit to Research 4106 | -3/Research | Identified exit to Armory 4107 | -3/Research | Loaded intel: 23 terminal locations 4153 | -3/Research | Spotted B-86 Titan 4174 | -3/Research | Spotted B-86 Titan 4188 | -3/Research | Entered another Research area 4188 | -2/Research | Warlord forces began assault on 0b10 4188 | -2/Research | Evolved 2 slots: Propulsion x1, Utility x1 4298 | -2/Research | Research machine network offline 4353 | -2/Research | Discovered new exit (range 10) 4357 | -2/Research | Identified exit to Testing 4385 | -2/Research | Met up with Warlord 4390 | -2/Research | Spotted B-90 Cyclops 4462 | -2/Research | Discovered new exit (range 8) 4468 | -2/Research | Identified exit to Access 4468 | -2/Research | Entered Access 4468 | -1/Access | Evolved 2 slots: Utility x2 4488 | -1/Access | Lost 5 allies 4570 | -1/Access | Spotted B-99 Colossus 4597 | -1/Access | Spotted B-99 Colossus 4691 | -1/Access | Core integrity fell below 50% 4715 | -1/Access | Core integrity fell below 20% 4718 | -1/Access | System corruption reached 10% 4723 | -1/Access | Lost 20 parts (5p6n8u1w) 4777 | -1/Access | Destroyed by P-80 Master with Gamma Rifle Last Messages --------------- 04720_ P-80 Master resets C-57 Dissector, system corruption cleaned. 04721_ P-80 Master destroyed. 04723_ C-57 Dissector destroyed. 04723_ Knocked back. 04724_ Acquired 9 matter. 04727_ Knocked back. 04728_ P-80 Master resets P-80 Master, system corruption cleaned. 04729_ VI0<%WRV,:CE6/ZA2 |WYZ4>BOLM4VMV:CD 04732_ Knocked back. 04735_ Adv. Heavy Treads destroyed. 04745_ Door malfunctions. 04751_ System corrupted: Component data lost. [Achievement: Hunted] 04774_ System corrupted: IFF burst signal emitted. [Achievement: This Is Interesting...] [Achievement: Just Browsing] [Achievement: Achiever] Map ----- +----------------------------------------------------+ | ?????????????# | | ?????????????# | | ?????????????# | | ?????????????# | | ?????????????### ####### | | ???????????????# #?????# | | ???????????????# #?????# | | ???????????????# #############?????# | | ???????????????# #?# #??????# | | ?????????????### ###! #??????# | | ?????????????# # #??????# | | ???????????### # #????#?# | | ????# g / #??#???# | | ????# ## p # ! #??????# | | ????# ! ??# g # #????### | | ????# ? ???## p## #??? # | | ????# ?? ?????#g p## #??? # | | ?????? ??????# ########+##?? # | | ????? ???????# g #??????# #### # | | ????? ??????### p###????# + ! # | | ????????????# ###### # # | | ????????????# p p # # | | ????????????# #? # | | ????????????# " #? # | | ????????????# #??### | | ????????????# @ #????# | | ????????????# ###########????# | | ????????????####;####??????????????# | | ???????????????###?????????????????# | | ?????????????????????????????#?????# | | ????????????????????????############ | | ????????????????????????# | | ????????????????????????# | | ????????????????????????# | | ????????????????????????# ^ | | ????????????????????????# | | ????????????????????????# | | ????????????????????????# ########## | | ????????????????????????# #????????? | | ????????????????????????# #????????? | | ????????????????????????# #????????? | | ????????????????????????# #????????? | | ????????????????????????# ?????????? | | ????????????????????????# ?????????? | | ????????????????????????# ?????????? | | ????????????????????????# ?????????? | | ????????????????????????# ?????????? | | ????????????????????????# ?????????? | | ????????????????????????## #?????????# | | ?????????????????????????? ??????????? | +----------------------------------------------------+ Best States ------------- Heat Dissipation 83 Coolant Potential 100 Energy Generation 72 Energy Capacity 675 Matter Stores 300 Matter Capacity 300 Sight Range 20 Robot Scan Range 18 Terrain Scan Range 20 Terrain Scan Density 10 ECM Strength 2 Power Amplification 30 Additional Mass Support 16 Propulsion Shielding 33 Phase Shifting 15 Evasion (%) 91 Recoil Reduction 2 Offensive Hacking 10 Item Schematics ----------------- Flight Unit | -9/Materials | Scanalyzed Lgt. Nuclear Core | -5/Factory | Scanalyzed Robot Schematics ------------------ None Fabricated ------------ Flight Unit | x2 | -7/Factory Repaired ---------- Nothing Studied --------- Flight Unit | -9/Materials | Hacked VTOL Module | -4/Factory | Hacked Xenon Bombardment Thruster | -4/Factory | Hacked Lgt. Nuclear Core | -4/Factory | Hacked Field Propulsion Array | -3/Research | Hacked Alien Tech Used ----------------- None Achievements -------------- A Powerful Ally? Achiever All-out Warlord Can't Catch Me Charge!!! Denied? Dodgeball, But With Guns Hunted Just Browsing Plot Armor Suspicious This Is Interesting... Challenges ------------ None Game ------ Seed CountertargetingTrapBlaster Manual? 0 Play Time 02:51:35 Cumulative 32.8 hours Start 2026.07.07 @ 00:34:26 End 2026.07.07 @ 04:14:30 Sessions 3 Manual Loads 0 Difficulty Rogue Special Mode None Game No. 25 Rogue 25 Adventurer 0 Explorer 0 Win Type - Total 0 Types 0/0/0/0/0/0/0/0/0/0 Lore% 26 Gallery% 25 Achievement% 26 Wizard Run 0 Options --------- Layout 1 ASCII 0 Keyboard 0 Movement Mouse Keybinds 0 Fullscreen 1 Font 24/Smallcaps Map View 50x35 Zoom Use 0% Tactical HUD 1 Map Filters NONE Filters NONE Steam 1 RUN: 4f7389d7-ec10-4b94-9db1-7e75db90d4d8